bitfinex-derivatives/quotes_ETHF0:USTF0_20250308
["timestamp","ask_amount","ask_price","bid_price","bid_amount"]
[1741427271403,0.6051,2131.8,2131.6,3.2078]
[1741427271606,1.54337,2131.8,2131.6,3.2078]
[1741427272903,0.93829,2131.7,2131.6,3.2078]
[1741427276105,0.93829,2131.7,2131.5,0.93835]
[1741427276106,0.6051,2131.8,2131.4,0.6121]
[1741427276308,0.6051,2131.8,2131.5,0.93836]
[1741427276799,0.93833,2131.6,2131.5,0.93836]
[1741427277203,0.93833,2131.6,2131.4,0.6121]
[1741427277597,0.93833,2131.6,2131.4,1.55048]
[1741427278000,0.93833,2131.6,2131.4,0.6121]
[1741427278203,0.93833,2131.6,2131.4,1.55049]
[1741427279200,0.93833,2131.6,2131.4,1.55052]
[1741427279201,0.93837,2131.6,2131.4,1.55052]
[1741427279907,0.93838,2131.5,2131.4,0.6121]
[1741427280204,0.93835,2131.6,2131.4,1.55052]
[1741427280998,0.93837,2131.6,2131.4,1.55052]
[1741427282695,0.6051,2131.8,2131.4,0.6121]
[1741427282895,1.54337,2131.8,2131.6,0.93832]
[1741427283306,0.93827,2131.8,2131.7,0.6063]
[1741427283903,3.3093,2131.9,2131.7,0.6063]
[1741427284103,0.93824,2131.8,2131.7,0.6063]
[1741427285109,2.6762,2131.9,2131.7,1.54459]
[1741427285305,0.6496,2132.0,2131.8,0.6565]
[1741427285504,0.6476,2132.3,2131.8,0.6565]
[1741427285505,0.93812,2132.1,2131.8,0.6565]
[1741427285706,0.93812,2132.1,2131.9,0.93818]
[1741427286314,0.93814,2132.1,2131.9,3.2078]
[1741427286903,0.93816,2132.0,2131.9,3.2078]
[1741427287312,2.046,2132.2,2131.9,3.2078]
[1741427287506,0.93816,2132.0,2131.9,3.2078]
[1741427289410,0.93831,2131.7,2131.5,5.43757]
[1741427289905,0.93831,2131.7,2131.5,5.43756]
[1741427290707,0.93833,2131.6,2131.5,4.4992]
[1741427291611,0.9383,2131.7,2131.5,5.43756]
[1741427291812,0.9383,2131.7,2131.5,4.4992]
[1741427292003,0.9383,2131.7,2131.5,5.43757]
[1741427292510,0.9383,2131.7,2131.5,4.4992]
[1741427292810,0.93833,2131.6,2131.5,4.4992]
[1741427293110,0.93831,2131.7,2131.5,5.43756]
[1741427293512,0.93833,2131.6,2131.5,4.4992]
[1741427293706,0.93829,2131.7,2131.5,5.43755]
[1741427294209,0.93828,2131.8,2131.5,5.43755]
[1741427294807,3.2078,2132.1,2131.5,4.4992]
[1741427295004,2.045,2132.2,2131.9,3.2078]
[1741427295204,1.9281,2132.3,2132.0,2.89365]
[1741427295411,0.93807,2132.2,2132.0,2.89362]
[1741427295811,0.93807,2132.2,2132.0,2.89365]
[1741427297115,2.86615,2132.3,2132.1,0.93807]
[1741427297520,1.9281,2132.3,2132.0,2.89363]
[1741427297726,0.93809,2132.2,2132.0,2.89363]
[1741427297918,0.93809,2132.2,2132.0,1.9555]
[1741427298123,0.93809,2132.2,2132.0,2.89365]
[1741427298316,0.93809,2132.2,2132.0,1.9555]
[1741427299221,2.86615,2132.3,2132.0,2.89364]
[1741427299424,1.9281,2132.3,2132.0,2.89364]
[1741427299624,0.93811,2132.1,2132.0,1.2945]
[1741427301214,1.9281,2132.3,2132.0,1.2945]
[1741427301416,0.00703185,2132.4,2132.2,3.2078]
[1741427301619,0.93802,2132.3,2132.2,3.2078]
[1741427301918,2.20722,2132.3,2132.2,3.2078]
[1741427303728,1.56012,2132.3,2132.2,3.2078]
[1741427307723,0.93817,2132.0,2131.8,4.14601]
[1741427307923,0.9382,2131.9,2131.8,4.14601]
[1741427308428,0.93819,2132.0,2131.8,4.14601]
[1741427309127,0.93815,2132.1,2131.9,0.9382]
[1741427309320,0.671,2132.2,2131.8,3.2078]
[1741427309523,0.93815,2132.1,2131.8,3.2078]
[1741427309718,0.671,2132.2,2131.8,3.2078]
[1741427309916,0.93815,2132.1,2131.8,4.14601]
[1741427310227,0.93816,2132.0,2131.8,4.14601]
[1741427312127,0.671,2132.2,2131.8,4.14601]
[1741427312520,0.93817,2132.0,2131.8,4.14601]
[1741427312724,0.9382,2131.9,2131.8,3.2078]
[1741427317926,0.9382,2131.9,2131.3,2.41508706]
[1741427317927,0.93835,2131.6,2131.5,3.2078]
[1741427318128,3.2078,2132.1,2131.5,3.2078]
[1741427318318,0.93822,2131.9,2131.7,0.93828]
[1741427318522,0.93824,2131.8,2131.6,0.93831]
[1741427318930,0.93823,2131.9,2131.5,3.2078]
[1741427319131,0.93823,2131.9,2131.6,0.93829]
[1741427319731,0.93826,2131.8,2131.6,0.93829]
[1741427320525,0.93833,2131.6,2131.5,3.2078]
[1741427321434,1.2295,2131.8,2131.5,3.2078]
[1741427321631,0.93832,2131.7,2131.5,4.14616]
[1741427322224,1.2295,2131.8,2131.5,3.2078]
[1741427322533,0.93832,2131.7,2131.5,4.14616]
[1741427323333,1.2295,2131.8,2131.5,4.14616]
[1741427323334,1.2295,2131.8,2131.5,3.2078]
[1741427323533,0.93833,2131.6,2131.5,3.2078]
[1741427324026,0.93831,2131.7,2131.5,4.14618]
[1741427324227,1.2295,2131.8,2131.5,3.2078]
[1741427324426,0.93829,2131.7,2131.5,4.14614]
[1741427324627,0.93829,2131.7,2131.5,3.2078]
[1741427324832,2.16775,2131.8,2131.6,0.93831]
[1741427325333,2.16777,2131.8,2131.6,0.93833]
[1741427325628,0.9383,2131.7,2131.5,4.14614]
[1741427325828,1.2295,2131.8,2131.5,4.14614]
[1741427326130,1.2295,2131.8,2131.5,3.2078]
[1741427326331,0.93833,2131.6,2131.5,3.2078]
[1741427333234,0.93838,2131.5,2131.4,1.2593]
[1741427334335,0.93846,2131.3,2131.2,3.2078]
[1741427334644,0.9386,2131.0,2130.9,4.85402746]
[1741427335436,0.9386,2131.0,2130.9,4.4816]
[1741427335835,3.2078,2131.1,2130.5,3.2078]
[1741427336036,0.93877,2130.7,2130.6,1.3049]
[1741427336240,0.93877,2130.6,2130.5,3.2078]
[1741427342452,1.2679,2130.8,2130.5,3.2078]
[1741427342853,0.93877,2130.6,2130.5,3.2078]
[1741427343562,2.035,2130.6,2130.2,3.2078]
[1741427343749,0.93891,2130.3,2130.2,3.2078]
[1741427343950,0.6166,2130.5,2130.2,3.2078]
[1741427344156,2.97381,2130.6,2130.3,0.93889]
[1741427344356,0.9389,2130.4,2130.2,3.2078]
[1741427344555,0.93893,2130.3,2130.2,3.2078]
[1741427344760,0.93899,2130.1,2130.0,0.6158]
[1741427345066,0.93913,2129.8,2129.7,0.6672]
[1741427345766,0.93921,2129.6,2129.5,3.8533]
[1741427346760,0.93945,2129.1,2128.9,3.2078]
[1741427347059,3.2078,2129.6,2128.9,3.2078]
[1741427347060,0.93937,2129.3,2128.9,3.2078]
[1741427347364,0.93941,2129.2,2128.9,3.2078]
[1741427347564,2.04,2129.4,2128.9,4.1473]
[1741427347862,0.93939,2129.3,2128.9,4.14729]
[1741427348069,0.6316,2129.7,2129.6,0.93921]
[1741427348262,0.6423,2129.9,2129.6,3.2078]
[1741427348464,0.00703185,2130.0,2129.9,0.93908]
[1741427348655,2.6784,2130.4,2129.9,3.2078]
[1741427348855,2.6784,2130.4,2129.7,3.2716]
[1741427348856,3.2078,2130.8,2130.2,3.2078]
[1741427349059,0.6364,2130.7,2130.2,3.2078]
[1741427349264,0.6364,2130.7,2130.3,0.6074]
[1741427349472,0.6364,2130.7,2130.6,0.93877]
[1741427349763,0.64343185,2130.9,2130.4,0.00703185]
[1741427349960,0.93878,2130.6,2130.4,0.00703185]
[1741427350159,0.64343185,2130.9,2130.4,0.00703185]
[1741427350465,0.93882,2130.5,2130.4,0.00703185]
[1741427350666,0.64343185,2130.9,2130.4,0.00703185]
[1741427351465,0.64343185,2130.9,2130.5,3.2078]
[1741427351662,0.9387,2130.8,2130.5,3.2078]
[1741427351862,0.64343185,2130.9,2130.5,3.2078]
[1741427352063,0.93876,2130.7,2130.5,3.8484]
[1741427353360,0.93882,2130.5,2130.4,0.00703185]
[1741427354569,1.24963185,2130.9,2130.4,0.00703185]
[1741427354869,0.93882,2130.5,2130.4,0.00703185]
[1741427355065,0.9388,2130.6,2130.4,0.00703185]
[1741427355267,0.64343185,2130.9,2130.7,0.93869]
[1741427355471,0.93869,2130.8,2130.5,4.1466]
[1741427355965,0.64343185,2130.9,2130.5,3.2078]
[1741427356166,0.93873,2130.7,2130.4,1.60686185]
[1741427356472,0.00703185,2130.9,2130.8,0.93868]
[1741427357364,0.00703185,2130.9,2130.8,4.14648]
[1741427357964,0.00703185,2130.9,2130.8,4.79238]
[1741427358468,1.2831,2131.7,2130.8,9.9017]
[1741427358669,3.2078,2132.0,2131.4,0.93839]
[1741427358874,0.93826,2131.8,2131.5,0.93837]
[1741427359076,0.93826,2131.8,2131.4,2.22178]
[1741427359471,0.93827,2131.8,2131.4,2.22178]
[1741427359776,0.94530185,2131.8,2131.4,1.29043185]
[1741427359970,0.00703185,2131.8,2131.4,1.29043185]
[1741427360272,0.00703185,2131.8,2131.7,3.2078]
[1741427360467,0.00703185,2131.8,2131.7,4.14609]
[1741427360667,0.00703185,2131.8,2131.7,6.19609]
[1741427360864,1.2831,2132.5,2131.7,5.2578]
[1741427361068,1.2831,2132.5,2132.0,3.2078]
[1741427361269,1.56944,2132.5,2132.2,0.93805]
[1741427361466,1.56944,2132.5,2132.0,3.2078]
[1741427361467,3.2078,2132.6,2132.1,0.6722]
[1741427361669,4.14571,2132.6,2132.2,0.93803]
[1741427362074,0.00703185,2132.6,2132.3,3.2078]
[1741427362276,0.93805,2132.3,2132.1,2.7222]
[1741427362474,0.6309,2132.5,2132.1,2.7222]
[1741427362475,0.93807,2132.2,2132.1,2.7222]
[1741427362777,0.93807,2132.2,2131.9,4.146]
[1741427362975,0.6309,2132.5,2131.9,3.2078]
[1741427363172,0.93809,2132.2,2131.9,3.2078]
[1741427363370,0.93814,2132.1,2131.8,2.056]
[1741427363576,0.93818,2132.0,2131.9,3.2078]
[1741427367878,0.93838,2131.5,2131.4,0.67773185]
[1741427368273,0.93838,2131.5,2131.4,0.00703185]
[1741427368689,3.2078,2131.5,2130.8,4.14647]
[1741427368982,0.93864,2130.9,2130.8,3.2078]
[1741427371371,0.93873,2130.7,2130.6,0.00703185]
[1741427377189,2.049,2131.0,2130.7,0.93873]
[1741427377481,2.05603185,2131.1,2130.6,0.00703185]
[1741427377681,0.93873,2130.7,2130.6,0.00703185]
[1741427378279,2.98773,2130.7,2130.6,0.00703185]
[1741427378982,3.59733,2130.7,2130.6,0.00703185]
[1741427380283,4.24613,2130.7,2130.6,0.00703185]
[1741427391195,3.2078,2130.9,2130.6,4.00703185]
[1741427391395,3.2078,2131.5,2131.0,0.9386]
[1741427391694,0.93842,2131.4,2131.2,0.93851]
[1741427392005,0.93851,2131.2,2131.1,3.8413]
[1741427392497,0.93851,2131.2,2131.1,0.6335]
[1741427395906,0.93865,2130.9,2130.7,4.79073]
[1741427396106,0.93865,2130.9,2130.8,0.613]
[1741427397600,5.2718,2131.1,2130.6,0.00703185]
[1741427397801,0.93873,2130.7,2130.6,0.00703185]
[1741427401409,3.00173,2130.7,2130.6,0.00703185]
[1741427401606,4.28333,2130.7,2130.6,0.00703185]
[1741427403908,0.93891,2130.3,2130.2,0.6183]
[1741427405007,0.93899,2130.1,2130.0,3.21483185]
[1741427405518,0.00703185,2130.3,2130.0,3.21483185]
[1741427405715,0.00703185,2130.3,2130.2,0.93895]
[1741427406112,0.00703185,2130.3,2130.0,3.21483185]
[1741427406312,0.00703185,2130.3,2130.1,1.2574]
[1741427406615,0.94594185,2130.3,2130.1,2.19636]
[1741427406807,0.00703185,2130.3,2130.1,1.2574]
[1741427407007,2.072,2130.8,2130.4,0.93885]
[1741427407213,3.8469,2131.2,2130.7,3.2078]
[1741427407411,0.93866,2130.9,2130.7,4.14652]
[1741427407607,2.073,2131.0,2130.6,0.6359]
[1741427407808,2.073,2131.0,2130.5,0.6103]
[1741427408003,3.2078,2131.2,2130.5,0.6103]
[1741427408205,2.079,2131.8,2131.0,3.2078]
[1741427408409,0.93841,2131.5,2131.2,0.93849]
[1741427408610,0.93842,2131.4,2131.2,0.00703185]
[1741427408811,0.00703185,2131.6,2131.3,4.14625]
[1741427409114,0.00703185,2131.6,2131.3,3.2078]
[1741427409509,0.93842,2131.4,2131.3,3.2078]
[1741427410515,0.00703185,2131.6,2131.3,3.2078]
[1741427410720,0.93842,2131.4,2131.3,3.2078]
[1741427412121,0.93841,2131.5,2131.3,3.2078]
[1741427412617,0.00703185,2131.6,2131.3,3.2078]
[1741427413024,0.93842,2131.4,2131.3,3.2078]
[1741427414316,0.00703185,2131.6,2131.3,3.2078]
[1741427414616,0.6596,2132.0,2131.3,5.2938]
[1741427414810,0.93831,2131.7,2131.4,1.56251]
[1741427415015,0.93833,2131.6,2131.5,0.6319]
[1741427415619,0.6312,2131.8,2131.3,3.2078]
[1741427415620,0.93842,2131.4,2131.3,3.2078]
[1741427424818,0.93846,2131.3,2131.2,0.00703185]
[1741427425123,0.93861,2131.0,2130.8,0.93867]
[1741427425325,0.93867,2130.9,2130.7,1.60741]
[1741427426526,0.93868,2130.8,2130.7,0.6687]
[1741427427833,0.93873,2130.7,2130.6,3.21483185]
[1741427433030,2.078,2131.0,2130.6,3.21483185]
[1741427433227,0.93849,2131.3,2131.0,0.93856]
[1741427433531,0.93846,2131.3,2131.1,2.21914]
[1741427433731,3.4058,2131.6,2130.9,3.2078]
[1741427433732,6.6136,2131.6,2130.9,3.2078]
[1741427434033,0.9386,2131.0,2130.9,3.2078]
[1741427434424,6.6136,2131.6,2130.9,3.2078]
[1741427434628,0.9386,2131.0,2130.9,3.2078]
[1741427435131,0.93854,2131.2,2130.9,3.2078]
[1741427435326,0.93854,2131.2,2130.9,4.14641]
[1741427435631,0.93857,2131.1,2130.9,4.14641]
[1741427435833,0.9386,2131.0,2130.9,3.2078]
[1741427436125,6.6136,2131.6,2130.9,3.2078]
[1741427436430,0.93857,2131.1,2130.9,3.2078]
[1741427436730,0.93853,2131.2,2130.9,4.14642]
[1741427437327,6.6136,2131.6,2130.9,3.2078]
[1741427437633,0.93854,2131.2,2130.9,4.14642]
[1741427438424,0.93854,2131.2,2130.9,3.2078]
[1741427438626,2.08,2131.5,2130.9,3.2078]
[1741427438627,2.08,2131.5,2130.9,4.14642]
[1741427438930,2.08,2131.5,2130.9,3.2078]
[1741427439130,0.9386,2131.0,2130.9,3.2078]
[1741427445932,0.93873,2130.7,2130.6,0.00703185]
[1741427447335,2.7134,2131.1,2130.6,0.64323185]
[1741427447729,0.93873,2130.7,2130.6,0.64323185]
[1741427447927,0.93871,2130.8,2130.6,1.58199185]
[1741427448127,0.93873,2130.7,2130.6,0.64323185]
[1741427450237,0.9387,2130.8,2130.6,0.64323185]
[1741427450436,0.93873,2130.7,2130.6,0.64323185]
[1741427451638,0.93872,2130.8,2130.6,0.64323185]
[1741427451834,2.7134,2131.1,2130.7,0.93873]
[1741427452130,2.7134,2131.1,2130.6,0.64323185]
[1741427452131,0.93867,2130.9,2130.6,1.58196185]
[1741427452329,0.93867,2130.9,2130.7,0.93872]
[1741427453342,2.7134,2131.1,2130.6,0.64323185]
[1741427453534,0.93868,2130.8,2130.6,1.58198185]
[1741427453734,0.93867,2130.9,2130.7,0.93873]
[1741427453935,2.7134,2131.1,2130.6,0.64323185]
[1741427454134,0.93867,2130.9,2130.7,0.93873]
[1741427454736,2.7134,2131.1,2130.7,0.93872]
[1741427455037,0.93866,2130.9,2130.7,0.93872]
[1741427455241,0.6364,2131.1,2130.6,0.64323185]
[1741427455541,0.93868,2130.9,2130.7,0.93872]
[1741427455741,0.6364,2131.1,2130.6,1.58196185]
[1741427456341,0.93867,2130.9,2130.7,0.93873]
[1741427456533,0.93867,2130.9,2130.6,1.58197185]
[1741427456735,0.93867,2130.9,2130.6,0.64323185]
[1741427456935,0.93867,2130.9,2130.7,0.93871]
[1741427457136,0.93861,2131.0,2130.8,0.93867]
[1741427457337,0.93861,2131.0,2130.9,0.6207]
[1741427460744,0.93864,2130.9,2130.8,3.2078]
[1741427460946,0.93873,2130.7,2130.6,0.64323185]
[1741427461145,0.93873,2130.7,2130.6,0.00703185]
[1741427461752,1.56463,2130.7,2130.6,0.00703185]
[1741427463243,5.2728,2131.0,2130.6,0.00703185]
[1741427463440,0.93873,2130.7,2130.6,1.27153185]
[1741427463639,0.93872,2130.8,2130.6,1.27153185]
[1741427463838,0.93873,2130.7,2130.6,1.27153185]
[1741427466250,1.8625,2130.9,2130.7,0.9387]
[1741427466448,0.93873,2130.8,2130.6,1.92413185]
[1741427466654,0.93873,2130.7,2130.6,1.92413185]
[1741427467055,0.93873,2130.7,2130.6,1.27153185]
[1741427467559,0.93873,2130.7,2130.6,0.00703185]
[1741427472055,1.2409,2130.8,2130.6,0.00703185]
[1741427472255,0.6125,2130.9,2130.7,0.93869]
[1741427472457,2.061,2131.0,2130.9,0.93864]
[1741427472657,0.93859,2131.1,2130.7,1.8952]
[1741427472852,0.93863,2131.0,2130.7,1.8952]
[1741427473058,0.93863,2131.0,2130.7,2.8339]
[1741427473257,0.6565,2131.2,2130.8,0.93866]
[1741427473258,0.93858,2131.1,2130.8,0.93866]
[1741427473455,0.93862,2131.0,2130.7,2.83391]
[1741427473857,0.93858,2131.1,2130.7,1.8952]
[1741427474058,3.2078,2131.6,2131.0,3.2078]
[1741427474260,2.064,2131.5,2131.1,1.56174]
[1741427474461,0.93847,2131.3,2131.1,1.56174]
[1741427474658,0.93847,2131.3,2131.1,0.6232]
[1741427475065,2.064,2131.5,2131.1,0.6232]
[1741427475566,0.93855,2131.1,2131.0,3.2078]
[1741427477660,3.8643,2131.6,2131.0,3.2078]
[1741427477661,0.93844,2131.4,2131.0,3.2078]
[1741427477873,2.7235,2131.6,2131.0,3.2078]
[1741427478068,0.93841,2131.5,2131.2,0.93849]
[1741427478368,0.93841,2131.5,2131.3,0.93845]
[1741427478568,0.93843,2131.4,2131.2,0.93849]
[1741427478768,0.93843,2131.4,2131.3,0.6285]
[1741427479273,0.6565,2131.6,2131.3,4.77474]
[1741427479570,0.93838,2131.5,2131.3,3.8363]
[1741427479762,0.00703185,2131.8,2131.3,3.8363]
[1741427479964,0.67573185,2131.8,2131.3,3.8363]
[1741427480165,0.00703185,2131.8,2131.6,3.2078]
[1741427480367,0.94527185,2131.8,2131.7,1.288]
[1741427480563,0.00703185,2131.8,2131.7,1.288]
[1741427480865,2.069,2132.7,2131.7,5.65684839]
[1741427481063,0.93792,2132.6,2132.0,3.2078]
[1741427481269,1.8995,2132.7,2132.0,5.2778]
[1741427481470,0.93792,2132.6,2132.3,4.14581]
[1741427481673,0.93797,2132.5,2132.3,3.2078]
[1741427481871,0.00703185,2132.6,2132.3,3.2078]
[1741427482174,0.00703185,2132.6,2132.2,0.00703185]
[1741427482175,0.93802,2132.3,2132.2,0.00703185]
[1741427482875,0.93799,2132.4,2132.2,0.00703185]
[1741427483177,0.00703185,2132.6,2132.2,0.00703185]
[1741427483373,0.94495185,2132.6,2132.2,0.00703185]
[1741427483680,0.93794,2132.5,2132.2,0.94507185]
[1741427484078,0.93794,2132.5,2132.4,3.2078]
[1741427484976,0.00703185,2132.6,2132.2,0.63973185]
[1741427485476,0.93802,2132.3,2132.2,0.63973185]
[1741427485674,0.93802,2132.3,2132.2,0.00703185]
[1741427485979,0.00703185,2132.6,2132.2,0.00703185]
[1741427486174,0.94493185,2132.6,2132.2,1.56736185]
[1741427486374,0.94493185,2132.6,2132.3,0.6327]
[1741427486886,0.93794,2132.5,2132.3,0.6327]
[1741427487180,0.93794,2132.5,2132.4,3.2078]
[1741427487680,0.93802,2132.3,2132.2,0.00703185]
[1741427488884,2.08403185,2132.6,2132.2,0.00703185]
[1741427489385,0.93798,2132.4,2132.2,0.00703185]
[1741427489582,0.93794,2132.5,2132.2,0.94509185]
[1741427489784,0.93794,2132.5,2132.2,0.00703185]
[1741427490087,0.93794,2132.5,2132.2,0.94507185]
[1741427490285,0.93794,2132.5,2132.2,0.00703185]
[1741427490487,0.938,2132.4,2132.2,0.00703185]
[1741427490681,0.93802,2132.3,2132.2,0.00703185]
[1741427495985,0.93824,2131.8,2131.7,3.2078]
[1741427498488,3.2078,2131.9,2131.5,1.29603185]
[1741427498694,0.93833,2131.6,2131.5,0.00703185]
[1741427499678,0.93833,2131.6,2131.3,3.2078]
[1741427499679,0.93859,2131.1,2131.0,0.37817793]
[1741427499980,0.93853,2131.2,2130.9,4.77623]
[1741427500182,3.8277,2131.6,2130.9,4.77623]
[1741427500183,0.93855,2131.1,2130.9,3.8376]
[1741427500395,0.93855,2131.2,2130.9,4.77623]
[1741427500693,0.9386,2131.0,2130.9,3.8376]
[1741427500892,0.93858,2131.1,2130.9,3.8376]
[1741427501394,0.9386,2131.0,2130.9,3.8376]
[1741427501588,0.93858,2131.1,2130.9,3.8376]
[1741427501892,0.93859,2131.1,2130.9,3.8376]
[1741427502088,0.93859,2131.1,2130.9,4.77624]
[1741427502289,0.93859,2131.1,2130.9,3.8376]
[1741427502484,0.9386,2131.0,2130.9,3.8376]
[1741427503090,0.9386,2131.0,2130.9,3.2078]
[1741427503493,1.3285,2131.2,2130.9,3.2078]
[1741427503682,0.9386,2131.0,2130.9,3.2078]
[1741427504486,1.3285,2131.2,2130.8,0.65153185]
[1741427504686,0.93864,2130.9,2130.8,0.00703185]
[1741427504890,5.2778,2131.0,2130.2,3.2078]
[1741427505093,0.93888,2130.4,2130.2,3.2078]
[1741427505487,0.93891,2130.3,2130.2,3.2078]
[1741427505794,5.2778,2131.0,2130.2,3.2078]
[1741427506193,0.93889,2130.4,2130.2,3.2078]
[1741427506803,0.93891,2130.3,2130.2,3.2078]
[1741427508994,1.2877,2130.5,2130.2,3.2078]
[1741427508995,2.22654,2130.5,2130.2,4.14671]
[1741427509301,1.2877,2130.5,2130.2,3.2078]
[1741427509497,0.9389,2130.4,2130.2,3.2078]
[1741427509691,0.93891,2130.3,2130.2,3.2078]
[1741427511398,1.2877,2130.5,2130.2,3.2078]
[1741427511598,0.93891,2130.3,2130.2,3.2078]
[1741427512397,0.93889,2130.4,2130.2,3.2078]
[1741427512601,0.93886,2130.4,2130.2,3.2078]
[1741427512900,0.93891,2130.3,2130.2,3.2078]
[1741427513101,1.2877,2130.5,2130.2,3.2078]
[1741427513300,0.93891,2130.3,2130.2,3.2078]
[1741427513795,0.93895,2130.2,2130.1,1.32403185]
[1741427513995,0.93895,2130.2,2130.1,0.00703185]
[1741427514601,3.00295,2130.2,2130.1,0.00703185]
[1741427516795,3.00295,2130.2,2130.1,1.85e-06]
[1741427517598,7.00295,2130.2,2130.1,1.85e-06]
[1741427518307,6.98837898,2130.2,2128.6,3.5785862]
[1741427518499,3.2078,2129.4,2128.6,3.2078]
[1741427518806,0.93961,2128.7,2128.6,3.2078]
[1741427519204,5.2768,2128.7,2128.3,3.2078]
[1741427519600,0.93969,2128.6,2128.3,3.2078]
[1741427519802,2.069,2128.7,2128.3,3.2078]
[1741427520000,2.069,2128.7,2127.7,2.41899811]
[1741427520001,2.069,2128.7,2128.6,4.14745]
[1741427520201,0.00703185,2128.9,2128.6,3.2078]
[1741427520397,0.93967,2128.6,2128.3,1.55669]
[1741427520601,0.00703185,2128.9,2128.4,0.93973]
[1741427520898,0.00703185,2128.9,2128.6,3.2078]
[1741427521103,0.93969,2128.6,2128.3,3.8247]
[1741427521304,0.93959,2128.8,2128.4,0.93971]
[1741427521502,0.93957,2128.8,2128.6,3.2078]
[1741427521705,0.9396,2128.8,2128.6,3.2078]
[1741427522108,0.93961,2128.7,2128.6,3.2078]
[1741427522703,0.00703185,2128.9,2128.3,3.8247]
[1741427523310,0.93974,2128.4,2128.3,3.2078]
[1741427524009,0.00703185,2128.9,2128.3,3.2078]
[1741427524605,0.93968,2128.6,2128.3,3.2078]
[1741427524810,0.93963,2128.7,2128.4,0.93973]
[1741427525109,0.93961,2128.7,2128.4,0.93972]
[1741427525310,0.93963,2128.7,2128.5,0.6177]
[1741427525710,0.93965,2128.6,2128.5,0.6177]
[1741427525913,0.00703185,2128.9,2128.5,0.6177]
[1741427526102,0.93963,2128.7,2128.5,0.6177]
[1741427526308,0.93965,2128.6,2128.5,0.6177]
[1741427526615,0.00703185,2128.9,2128.5,0.6177]
[1741427526910,0.93965,2128.6,2128.5,0.6177]
[1741427527109,0.93965,2128.6,2128.4,3.2078]
[1741427527309,0.9397,2128.5,2128.4,3.2078]
[1741427527612,0.93979,2128.3,2128.2,0.6571]
[1741427527812,2.085,2128.6,2128.2,0.6571]
[1741427528013,0.93972,2128.5,2128.3,3.2078]
[1741427528314,2.085,2128.6,2128.3,3.2078]
[1741427528615,0.93972,2128.5,2128.3,3.2078]
[1741427528812,3.0247,2128.6,2128.3,4.14757]
[1741427529113,0.9397,2128.6,2128.3,4.14757]
[1741427529319,0.93974,2128.4,2128.3,3.2078]
[1741427529816,2.09503185,2128.9,2128.3,3.2078]
[1741427530316,0.93961,2128.7,2128.6,3.2078]
[1741427530614,0.93957,2128.8,2128.7,0.6123]
[1741427530810,0.93957,2128.8,2128.7,1.2505]
[1741427531107,0.00703185,2128.9,2128.8,0.93957]
[1741427531517,0.94657185,2128.9,2128.7,1.2505]
[1741427531709,0.93957,2128.8,2128.7,1.2505]
[1741427531904,0.00703185,2128.9,2128.7,1.2505]
[1741427532312,0.93957,2128.8,2128.7,1.2505]
[1741427532501,0.00703185,2128.9,2128.7,2.1901]
[1741427532708,0.94658185,2128.9,2128.7,1.2505]
[1741427533212,0.93957,2128.8,2128.7,1.2505]
[1741427533515,0.94657185,2128.9,2128.7,1.2505]
[1741427533907,0.00703185,2128.9,2128.7,2.19011]
[1741427534208,0.00703185,2128.9,2128.7,1.2505]
[1741427534414,0.94655185,2128.9,2128.7,2.1901]
[1741427534618,0.94655185,2128.9,2128.7,1.2505]
[1741427534915,0.94655185,2128.9,2128.8,0.93957]
[1741427534916,0.00703185,2128.9,2128.8,0.93957]
[1741427535410,1.56128,2129.5,2129.2,0.93937]
[1741427535614,2.097,2129.7,2129.3,4.78312]
[1741427535813,0.9393,2129.4,2129.3,0.636]
[1741427536113,2.097,2129.7,2129.3,3.8438]
[1741427536822,0.9393,2129.4,2129.3,3.85083185]
[1741427537014,0.93924,2129.6,2129.3,4.79014185]
[1741427537214,0.93924,2129.6,2129.4,0.6295]
[1741427537421,0.00703185,2129.7,2129.4,0.6295]
[1741427537604,0.93926,2129.5,2129.4,0.6295]
[1741427538606,0.00703185,2129.7,2129.3,3.85083185]
[1741427538803,0.9393,2129.4,2129.3,0.00703185]
[1741427540111,0.93927,2129.5,2129.3,3.21483185]
[1741427540519,0.93925,2129.6,2129.4,0.6563]
[1741427540714,0.93926,2129.5,2129.4,0.6563]
[1741427542120,0.00703185,2129.7,2129.4,0.6563]
[1741427542317,0.93923,2129.6,2129.4,0.6563]
[1741427542718,0.93922,2129.6,2129.4,0.6563]
[1741427543618,0.93922,2129.6,2129.3,4.15415185]
[1741427543619,0.00703185,2129.7,2129.3,3.21483185]
[1741427543817,0.9393,2129.4,2129.3,3.21483185]
[1741427544829,0.00703185,2129.7,2129.3,3.21483185]
[1741427545121,0.93921,2129.6,2129.3,4.15415185]
[1741427545318,0.00703185,2129.7,2129.3,3.21483185]
[1741427545519,0.00703185,2129.7,2129.4,0.9393]
[1741427545716,0.00703185,2129.7,2129.5,0.6639]
[1741427545918,0.94624185,2129.7,2129.6,3.2078]
[1741427546719,0.94620185,2129.7,2129.6,3.2078]
[1741427546926,0.00703185,2129.7,2129.6,3.2078]
[1741427547124,0.94620185,2129.7,2129.6,3.2078]
[1741427547525,0.93921,2129.6,2129.5,0.6639]
[1741427548127,0.00703185,2129.7,2129.3,3.21483185]
[1741427548329,0.9393,2129.4,2129.3,3.21483185]
[1741427550321,0.9393,2129.4,2129.3,0.00703185]
[1741427550528,0.93948,2129.0,2128.9,3.2078]
[1741427550722,0.93952,2128.9,2128.8,3.2078]
[1741427551837,0.6454,2129.0,2128.8,3.2078]
[1741427552025,0.93952,2128.9,2128.8,3.2078]
[1741427552722,0.17198842,2149.3,2128.8,3.2078]